[Event "*** Titled Tuesday Blitz"]
[Site "Chess.com"]
[Date "2020.04.28"]
[Round "4"]
[White "EvilMorty23"]
[Black "GHANDEEVAM2003"]
[Result "0-1"]
[WhiteElo "2535"]
[BlackElo "2847"]
[TimeControl "180+1"]
[EndTime "10:38:28 PDT"]
[Termination "GHANDEEVAM2003 won by resignation"]

1. e4 {[%clk 0:03:00.9]} 1... e6 {[%clk 0:02:56.9]} 2. d4 {[%clk 0:03:00.8]}
2... d5 {[%clk 0:02:57.8]} 3. Nd2 {[%clk 0:03:01.4]} 3... Nf6 {[%clk 0:02:57.1]}
4. e5 {[%clk 0:03:01.6]} 4... Ne4 {[%clk 0:02:57]} 5. Bd3 {[%clk 0:02:49.1]}
5... Nxd2 {[%clk 0:02:56.8]} 6. Qxd2 {[%clk 0:02:48.4]} 6... c5 {[%clk
0:02:57.7]} 7. c3 {[%clk 0:02:47.7]} 7... Nc6 {[%clk 0:02:56.4]} 8. Bb5 {[%clk
0:02:36.1]} 8... Qb6 {[%clk 0:02:51.3]} 9. Bxc6+ {[%clk 0:02:28.9]} 9... bxc6
{[%clk 0:02:52.2]} 10. Nf3 {[%clk 0:02:29.2]} 10... Ba6 {[%clk 0:02:48.3]} 11.
dxc5 {[%clk 0:02:25]} 11... Bxc5 {[%clk 0:02:49.2]} 12. b4 {[%clk 0:02:25.3]}
12... Be7 {[%clk 0:02:48.5]} 13. Qd4 {[%clk 0:02:08.9]} 13... c5 {[%clk
0:02:46.6]} 14. Qg4 {[%clk 0:02:08.4]} 14... cxb4 {[%clk 0:02:41.6]} 15. Be3
{[%clk 0:02:06.4]} 15... Qb5 {[%clk 0:02:37]} 16. Nd4 {[%clk 0:02:06.5]} 16...
Qd3 {[%clk 0:02:32.9]} 17. Rc1 {[%clk 0:01:57.6]} 17... O-O {[%clk 0:02:25.6]}
18. h4 {[%clk 0:01:48.8]} 18... Rfc8 {[%clk 0:02:13.1]} 19. Rh3 {[%clk
0:01:42.1]} 19... Qf1+ {[%clk 0:01:57.5]} 20. Kd2 {[%clk 0:01:39.3]} 20... bxc3+
{[%clk 0:01:58.4]} 21. Rxc3 {[%clk 0:01:34.9]} 21... Rxc3 {[%clk 0:01:58.9]} 22.
Kxc3 {[%clk 0:01:26.7]} 22... Rc8+ {[%clk 0:01:59.3]} 23. Kb2 {[%clk 0:01:26.5]}
23... Rb8+ {[%clk 0:01:56.7]} 24. Nb3 {[%clk 0:01:24.4]} 24... Bd3 {[%clk
0:01:52.1]} 25. Bc1 {[%clk 0:01:21.6]} 25... Qxf2+ {[%clk 0:01:50.7]} 26. Ka1
{[%clk 0:01:08.1]} 26... Qc2 {[%clk 0:01:50.7]} 27. Rxd3 {[%clk 0:01:04.2]}
27... Qxd3 {[%clk 0:01:51.6]} 28. Qa4 {[%clk 0:00:59.9]} 28... Qc4 {[%clk
0:01:42.3]} 29. Qxa7 {[%clk 0:00:54.1]} 29... Rxb3 {[%clk 0:01:42.4]} 30. axb3
{[%clk 0:00:43.3]} 30... Qxc1+ {[%clk 0:01:42.6]} 31. Ka2 {[%clk 0:00:43.7]}
31... Qc2+ {[%clk 0:01:43.4]} 32. Ka1 {[%clk 0:00:43.9]} 32... Bf8 {[%clk
0:01:43.4]} 33. Qb8 {[%clk 0:00:39.8]} 33... d4 {[%clk 0:01:41.8]} 34. b4 {[%clk
0:00:39.2]} 34... d3 {[%clk 0:01:41.9]} 35. Qc8 {[%clk 0:00:39.2]} 35... Qxc8
{[%clk 0:01:41]} 0-1

[Event "*** Titled Tuesday Blitz"]
[Site "Chess.com"]
[Date "2020.04.28"]
[Round "4"]
[White "Balla_Tamas"]
[Black "ChessWarrior7197"]
[Result "0-1"]
[WhiteElo "2537"]
[BlackElo "2853"]
[TimeControl "180+1"]
[EndTime "10:38:40 PDT"]
[Termination "ChessWarrior7197 won by resignation"]

1. e4 {[%clk 0:02:54.9]} 1... c5 {[%clk 0:02:57]} 2. d3 {[%clk 0:02:54.9]} 2...
Nc6 {[%clk 0:02:56.1]} 3. g3 {[%clk 0:02:55.4]} 3... g6 {[%clk 0:02:56.1]} 4.
Bg2 {[%clk 0:02:56.1]} 4... Bg7 {[%clk 0:02:57]} 5. f4 {[%clk 0:02:56.8]} 5...
d6 {[%clk 0:02:56.5]} 6. Nf3 {[%clk 0:02:57.3]} 6... Nf6 {[%clk 0:02:56.6]} 7.
O-O {[%clk 0:02:57.7]} 7... O-O {[%clk 0:02:57.2]} 8. c3 {[%clk 0:02:57.1]} 8...
Rb8 {[%clk 0:02:56.9]} 9. a4 {[%clk 0:02:56.4]} 9... a6 {[%clk 0:02:56.9]} 10.
Re1 {[%clk 0:02:54]} 10... Bg4 {[%clk 0:02:54.8]} 11. h3 {[%clk 0:02:51.2]}
11... Bxf3 {[%clk 0:02:53.8]} 12. Bxf3 {[%clk 0:02:51.2]} 12... Nd7 {[%clk
0:02:53.4]} 13. Be3 {[%clk 0:02:47]} 13... b5 {[%clk 0:02:53.2]} 14. axb5 {[%clk
0:02:45.9]} 14... axb5 {[%clk 0:02:54.1]} 15. Bf2 {[%clk 0:02:45.9]} 15... b4
{[%clk 0:02:52.9]} 16. d4 {[%clk 0:02:43.8]} 16... bxc3 {[%clk 0:02:52.3]} 17.
bxc3 {[%clk 0:02:43.5]} 17... cxd4 {[%clk 0:02:51.5]} 18. cxd4 {[%clk
0:02:42.8]} 18... Rb2 {[%clk 0:02:42.6]} 19. Ra4 {[%clk 0:02:15]} 19... Nb6
{[%clk 0:02:37.7]} 20. Ra3 {[%clk 0:02:13.6]} 20... Rxf2 {[%clk 0:02:31.9]} 21.
Kxf2 {[%clk 0:02:09.5]} 21... Nxd4 {[%clk 0:02:31.9]} 22. Nd2 {[%clk 0:02:01.2]}
22... Qc7 {[%clk 0:02:25.7]} 23. Rd3 {[%clk 0:01:30.3]} 23... Rb8 {[%clk
0:02:13.5]} 24. Nb3 {[%clk 0:01:21.7]} 24... Nc2 {[%clk 0:02:06.8]} 25. Re2
{[%clk 0:01:19.8]} 25... Nb4 {[%clk 0:02:05.9]} 26. Rdd2 {[%clk 0:01:16.2]}
26... Nc4 {[%clk 0:02:04.4]} 27. Kg2 {[%clk 0:00:28.2]} 27... Nxd2 {[%clk
0:02:03.3]} 28. Nxd2 {[%clk 0:00:28.2]} 28... Na2 {[%clk 0:01:56.4]} 29. Nb1
{[%clk 0:00:23.8]} 29... Nb4 {[%clk 0:01:52]} 30. Qb3 {[%clk 0:00:20.2]} 30...
Nc6 {[%clk 0:01:50.4]} 31. Qc2 {[%clk 0:00:19]} 31... Qb6 {[%clk 0:01:49.8]} 0-1

[Event "*** Titled Tuesday Blitz"]
[Site "Chess.com"]
[Date "2020.04.28"]
[Round "4"]
[White "Danesz22"]
[Black "crazy_machine"]
[Result "0-1"]
[WhiteElo "2284"]
[BlackElo "2593"]
[TimeControl "180+1"]
[EndTime "10:38:41 PDT"]
[Termination "crazy_machine won by resignation"]

1. e4 {[%clk 0:03:00.9]} 1... c6 {[%clk 0:02:59.9]} 2. d4 {[%clk 0:03:00.5]}
2... d5 {[%clk 0:03:00.8]} 3. Nc3 {[%clk 0:02:59.2]} 3... dxe4 {[%clk
0:03:00.2]} 4. Nxe4 {[%clk 0:03:00.1]} 4... Bf5 {[%clk 0:03:00.5]} 5. Ng3 {[%clk
0:03:00.2]} 5... Bg6 {[%clk 0:03:01.1]} 6. h4 {[%clk 0:03:00.4]} 6... h6 {[%clk
0:03:01.5]} 7. Nf3 {[%clk 0:03:01]} 7... Nd7 {[%clk 0:03:02]} 8. h5 {[%clk
0:03:01.6]} 8... Bh7 {[%clk 0:03:02.7]} 9. Bd3 {[%clk 0:03:01.2]} 9... Bxd3
{[%clk 0:03:03.2]} 10. Qxd3 {[%clk 0:03:02.1]} 10... e6 {[%clk 0:03:04.1]} 11.
Bd2 {[%clk 0:03:02.6]} 11... Ngf6 {[%clk 0:03:04.6]} 12. O-O-O {[%clk
0:03:03.1]} 12... Be7 {[%clk 0:03:05.5]} 13. Kb1 {[%clk 0:03:02.8]} 13... O-O
{[%clk 0:03:05.8]} 14. Ne4 {[%clk 0:03:03.4]} 14... c5 {[%clk 0:03:06.4]} 15. g4
{[%clk 0:03:01.5]} 15... Nxg4 {[%clk 0:03:04.4]} 16. Qe2 {[%clk 0:03:01.6]}
16... cxd4 {[%clk 0:02:57.1]} 17. Rdg1 {[%clk 0:02:49.9]} 17... f5 {[%clk
0:02:50.9]} 18. Nxd4 {[%clk 0:02:38.7]} 18... Qb6 {[%clk 0:02:41.9]} 19. Bc3
{[%clk 0:02:23.3]} 19... Rac8 {[%clk 0:02:32.2]} 20. Rxg4 {[%clk 0:01:29.8]}
20... fxg4 {[%clk 0:02:24]} 21. Qxg4 {[%clk 0:01:19.9]} 21... Bf6 {[%clk
0:01:43.2]} 22. Nxe6 {[%clk 0:01:02.6]} 22... Bxc3 {[%clk 0:01:42]} 23. Nxc3
{[%clk 0:00:59.1]} 23... Rf7 {[%clk 0:01:41.9]} 24. Nd5 {[%clk 0:00:32]} 24...
Qc6 {[%clk 0:01:42]} 25. Qe4 {[%clk 0:00:12.7]} 25... Re8 {[%clk 0:01:41.9]} 26.
Re1 {[%clk 0:00:10.3]} 26... Nc5 {[%clk 0:01:40.9]} 0-1

[Event "*** Titled Tuesday Blitz"]
[Site "Chess.com"]
[Date "2020.04.28"]
[Round "4"]
[White "Charlottemillard17"]
[Black "UCantHandleDenker"]
[Result "0-1"]
[WhiteElo "1409"]
[BlackElo "2559"]
[TimeControl "180+1"]
[EndTime "10:38:42 PDT"]
[Termination "UCantHandleDenker won by checkmate"]

1. e4 {[%clk 0:03:00.9]} 1... c5 {[%clk 0:02:57.5]} 2. c3 {[%clk 0:02:59.8]}
2... d6 {[%clk 0:02:57.4]} 3. d4 {[%clk 0:02:58.9]} 3... Nf6 {[%clk 0:02:58]} 4.
Bd3 {[%clk 0:02:45.1]} 4... g6 {[%clk 0:02:57.1]} 5. f4 {[%clk 0:02:39.2]} 5...
Bg7 {[%clk 0:02:53.9]} 6. e5 {[%clk 0:02:38.8]} 6... Nfd7 {[%clk 0:02:44.6]} 7.
Nf3 {[%clk 0:02:36.1]} 7... O-O {[%clk 0:02:42.7]} 8. O-O {[%clk 0:02:34.8]}
8... cxd4 {[%clk 0:02:42.5]} 9. cxd4 {[%clk 0:02:34]} 9... Nc6 {[%clk 0:02:43]}
10. Bc2 {[%clk 0:02:31.4]} 10... dxe5 {[%clk 0:02:41.7]} 11. dxe5 {[%clk
0:02:28.3]} 11... Nb6 {[%clk 0:02:35.7]} 12. Qe2 {[%clk 0:02:15.3]} 12... Bg4
{[%clk 0:02:30.7]} 13. Nc3 {[%clk 0:02:07.1]} 13... Nd4 {[%clk 0:02:27.7]} 14.
Qf2 {[%clk 0:01:57.8]} 14... Bxf3 {[%clk 0:02:11.6]} 15. gxf3 {[%clk 0:01:56]}
15... Nxc2 {[%clk 0:02:11.1]} 16. Qxc2 {[%clk 0:01:55.1]} 16... Qd4+ {[%clk
0:02:07.4]} 17. Kh1 {[%clk 0:01:44.9]} 17... Rfd8 {[%clk 0:02:01.8]} 18. Rd1
{[%clk 0:01:36.3]} 18... Qc4 {[%clk 0:01:58.9]} 19. Rg1 {[%clk 0:01:25.3]} 19...
Nd5 {[%clk 0:01:49.3]} 20. Bd2 {[%clk 0:01:13]} 20... Nxf4 {[%clk 0:01:43.3]}
21. Rg4 {[%clk 0:01:05.7]} 21... Qd3 {[%clk 0:01:42.9]} 22. Qxd3 {[%clk
0:00:59.1]} 22... Nxd3 {[%clk 0:01:42]} 23. Rb1 {[%clk 0:00:56.8]} 23... Nf2+
{[%clk 0:01:40.7]} 24. Kg1 {[%clk 0:00:54.2]} 24... Nxg4 {[%clk 0:01:41.6]} 25.
fxg4 {[%clk 0:00:53.3]} 25... Rxd2 {[%clk 0:01:40.3]} 26. Nb5 {[%clk 0:00:50.4]}
26... Rc8 {[%clk 0:01:35.5]} 27. Nxa7 {[%clk 0:00:48.2]} 27... Rcc2 {[%clk
0:01:34.4]} 28. e6 {[%clk 0:00:44.5]} 28... Bd4+ {[%clk 0:01:30.9]} 29. Kf1
{[%clk 0:00:40.1]} 29... Rxh2 {[%clk 0:01:30]} 30. exf7+ {[%clk 0:00:38.1]}
30... Kxf7 {[%clk 0:01:30.9]} 31. Ke1 {[%clk 0:00:32.5]} 31... Rh1# {[%clk
0:01:28.7]} 0-1

[Event "*** Titled Tuesday Blitz"]
[Site "Chess.com"]
[Date "2020.04.28"]
[Round "4"]
[White "Skatchkov_V"]
[Black "AnonymusDonkey"]
[Result "1-0"]
[WhiteElo "2559"]
[BlackElo "2341"]
[TimeControl "180+1"]
[EndTime "10:38:42 PDT"]
[Termination "Skatchkov_V won by resignation"]

1. d4 {[%clk 0:03:00.7]} 1... Nf6 {[%clk 0:02:55.2]} 2. c4 {[%clk 0:03:00.8]}
2... c5 {[%clk 0:02:54.8]} 3. d5 {[%clk 0:03:00.7]} 3... b5 {[%clk 0:02:55.2]}
4. cxb5 {[%clk 0:03:01.1]} 4... a6 {[%clk 0:02:55.6]} 5. bxa6 {[%clk 0:03:01.6]}
5... g6 {[%clk 0:02:56.1]} 6. Nf3 {[%clk 0:03:01.4]} 6... Bg7 {[%clk 0:02:56.3]}
7. Nc3 {[%clk 0:03:02.1]} 7... O-O {[%clk 0:02:56.5]} 8. g3 {[%clk 0:03:02.8]}
8... d6 {[%clk 0:02:56.4]} 9. Bg2 {[%clk 0:03:03]} 9... Nbd7 {[%clk 0:02:57]}
10. Rb1 {[%clk 0:03:03.2]} 10... Nb6 {[%clk 0:02:57.3]} 11. O-O {[%clk
0:02:55.7]} 11... Bf5 {[%clk 0:02:57.4]} 12. Ra1 {[%clk 0:02:52.6]} 12... Ne4
{[%clk 0:02:57.6]} 13. Bd2 {[%clk 0:02:07.5]} 13... Nc4 {[%clk 0:02:44]} 14.
Nxe4 {[%clk 0:01:27.8]} 14... Bxe4 {[%clk 0:02:43.3]} 15. Bc3 {[%clk 0:01:27.9]}
15... Nxb2 {[%clk 0:02:36.6]} 16. Qc1 {[%clk 0:01:27.3]} 16... Qb6 {[%clk
0:01:51]} 17. Bxg7 {[%clk 0:00:58.3]} 17... Kxg7 {[%clk 0:01:51.9]} 18. Qe3
{[%clk 0:00:53]} 18... Qb4 {[%clk 0:01:12.8]} 19. a3 {[%clk 0:00:45.2]} 19...
Qc4 {[%clk 0:00:54.2]} 20. Nd2 {[%clk 0:00:43.7]} 1-0

[Event "*** Titled Tuesday Blitz"]
[Site "Chess.com"]
[Date "2020.04.28"]
[Round "4"]
[White "renehp"]
[Black "IlzeBerzina"]
[Result "1-0"]
[WhiteElo "2416"]
[BlackElo "2160"]
[TimeControl "180+1"]
[EndTime "10:38:42 PDT"]
[Termination "renehp won by resignation"]

1. e4 {[%clk 0:03:00.6]} 1... c6 {[%clk 0:02:59.3]} 2. d4 {[%clk 0:03:00.1]}
2... d5 {[%clk 0:02:59.1]} 3. f3 {[%clk 0:03:00.7]} 3... dxe4 {[%clk 0:02:54.6]}
4. fxe4 {[%clk 0:03:01.6]} 4... e5 {[%clk 0:02:53.1]} 5. Nf3 {[%clk 0:03:01.9]}
5... exd4 {[%clk 0:02:50.8]} 6. Bc4 {[%clk 0:03:01.5]} 6... Be7 {[%clk
0:02:44.7]} 7. O-O {[%clk 0:02:50]} 7... Nf6 {[%clk 0:02:36.5]} 8. e5 {[%clk
0:02:45.4]} 8... Nd5 {[%clk 0:02:34.6]} 9. Qxd4 {[%clk 0:02:45.3]} 9... Be6
{[%clk 0:02:26.6]} 10. Kh1 {[%clk 0:02:40.4]} 10... O-O {[%clk 0:02:17.6]} 11.
Qe4 {[%clk 0:02:40.1]} 11... Nd7 {[%clk 0:02:02.1]} 12. Bd3 {[%clk 0:02:39.8]}
12... g6 {[%clk 0:02:01.9]} 13. Bh6 {[%clk 0:02:38.2]} 13... Re8 {[%clk
0:02:00.4]} 14. Nbd2 {[%clk 0:02:36.6]} 14... Nc5 {[%clk 0:01:58.5]} 15. Qe2
{[%clk 0:02:33.7]} 15... Nxd3 {[%clk 0:01:57.7]} 16. cxd3 {[%clk 0:02:34.6]}
16... Bf8 {[%clk 0:01:50.4]} 17. Bg5 {[%clk 0:02:28.2]} 17... Be7 {[%clk
0:01:47.8]} 18. Ne4 {[%clk 0:02:26.1]} 18... Bxg5 {[%clk 0:01:45]} 19. Nfxg5
{[%clk 0:02:25.1]} 19... h6 {[%clk 0:01:23.2]} 20. Nxe6 {[%clk 0:02:19.5]} 20...
Rxe6 {[%clk 0:01:22.6]} 21. d4 {[%clk 0:02:18.3]} 21... Qh4 {[%clk 0:01:15.5]}
22. Nc5 {[%clk 0:02:13.9]} 22... Re7 {[%clk 0:01:10]} 23. Qd2 {[%clk 0:02:11.2]}
23... Rd8 {[%clk 0:01:00.5]} 24. Rf3 {[%clk 0:02:06.4]} 24... Qg5 {[%clk
0:00:45]} 25. Qf2 {[%clk 0:01:57.2]} 25... Nb4 {[%clk 0:00:37.2]} 26. Rf1 {[%clk
0:01:53.8]} 26... Rf8 {[%clk 0:00:31.6]} 27. Ne4 {[%clk 0:01:45.8]} 27... Qh5
{[%clk 0:00:13.1]} 28. Nf6+ {[%clk 0:01:44.8]} 1-0

[Event "*** Titled Tuesday Blitz"]
[Site "Chess.com"]
[Date "2020.04.28"]
[Round "4"]
[White "allvim"]
[Black "Tiqr777"]
[Result "0-1"]
[WhiteElo "2302"]
[BlackElo "2599"]
[TimeControl "180+1"]
[EndTime "10:38:44 PDT"]
[Termination "Tiqr777 won by resignation"]

1. e4 {[%clk 0:03:00.9]} 1... c5 {[%clk 0:02:58.2]} 2. Nf3 {[%clk 0:03:00.9]}
2... a6 {[%clk 0:02:51]} 3. d4 {[%clk 0:02:58.4]} 3... cxd4 {[%clk 0:02:51.6]}
4. Nxd4 {[%clk 0:02:59.3]} 4... e5 {[%clk 0:02:52]} 5. Nb3 {[%clk 0:02:55.7]}
5... Nf6 {[%clk 0:02:52]} 6. Nc3 {[%clk 0:02:56.1]} 6... Bb4 {[%clk 0:02:51.1]}
7. Bg5 {[%clk 0:02:51.1]} 7... Qc7 {[%clk 0:02:46.6]} 8. Bxf6 {[%clk 0:02:48.1]}
8... Bxc3+ {[%clk 0:02:46.2]} 9. bxc3 {[%clk 0:02:49]} 9... Qxc3+ {[%clk
0:02:46.5]} 10. Qd2 {[%clk 0:02:49.6]} 10... Qxd2+ {[%clk 0:02:45.7]} 11. Kxd2
{[%clk 0:02:50.5]} 11... gxf6 {[%clk 0:02:45.9]} 12. Bc4 {[%clk 0:02:45.2]}
12... d6 {[%clk 0:02:45.2]} 13. Rad1 {[%clk 0:02:43.3]} 13... Ke7 {[%clk
0:02:44.9]} 14. Kc3 {[%clk 0:02:39.4]} 14... Nc6 {[%clk 0:02:44]} 15. Bd5 {[%clk
0:02:38.1]} 15... Be6 {[%clk 0:02:44.2]} 16. Kb2 {[%clk 0:02:38]} 16... Rac8
{[%clk 0:02:42.7]} 17. Rd2 {[%clk 0:02:30.1]} 17... Bxd5 {[%clk 0:02:39.5]} 18.
Rxd5 {[%clk 0:02:28.2]} 18... Nb4 {[%clk 0:02:33.5]} 19. Rd2 {[%clk 0:02:28]}
19... Rc4 {[%clk 0:02:28.8]} 20. f3 {[%clk 0:02:27.3]} 20... Rhc8 {[%clk
0:02:25.9]} 21. Rc1 {[%clk 0:02:26.4]} 21... b6 {[%clk 0:02:24.9]} 22. a3 {[%clk
0:02:26.6]} 22... Nc6 {[%clk 0:02:24.1]} 23. Rcd1 {[%clk 0:02:27.1]} 23... Na5
{[%clk 0:02:23.2]} 24. Nxa5 {[%clk 0:01:50.7]} 24... bxa5 {[%clk 0:02:21]} 25.
Rxd6 {[%clk 0:01:50.2]} 25... Rxc2+ {[%clk 0:02:20.7]} 26. Kb1 {[%clk
0:01:45.7]} 26... Rxg2 {[%clk 0:02:19]} 27. Rd7+ {[%clk 0:01:46.2]} 27... Kf8
{[%clk 0:02:17]} 28. Rb7 {[%clk 0:01:32.2]} 28... Rcc2 {[%clk 0:02:01.3]} 29.
Rdd7 {[%clk 0:01:29.1]} 29... Rcf2 {[%clk 0:02:01.2]} 30. Rxf7+ {[%clk
0:01:19.2]} 30... Kg8 {[%clk 0:01:59.8]} 31. Rfc7 {[%clk 0:01:16]} 31... Rg1+
{[%clk 0:01:58.8]} 32. Rc1 {[%clk 0:01:16.2]} 32... Rxc1+ {[%clk 0:01:58.7]} 33.
Kxc1 {[%clk 0:01:17.1]} 33... Rxf3 {[%clk 0:01:58.9]} 34. Kb2 {[%clk 0:01:12.1]}
34... Rf2+ {[%clk 0:01:57.3]} 35. Kc3 {[%clk 0:01:12.6]} 35... Rxh2 {[%clk
0:01:57.6]} 36. Kc4 {[%clk 0:01:12.3]} 36... Rd2 {[%clk 0:01:56]} 37. Ra7 {[%clk
0:01:04.2]} 37... Rd4+ {[%clk 0:01:53.9]} 38. Kc5 {[%clk 0:01:04.8]} 38... Rxe4
{[%clk 0:01:54.2]} 39. Kd5 {[%clk 0:01:05.3]} 39... Rf4 {[%clk 0:01:48.7]} 40.
Ke6 {[%clk 0:01:00.4]} 40... e4 {[%clk 0:01:48.2]} 41. Rxa6 {[%clk 0:00:56.5]}
41... e3 {[%clk 0:01:47.9]} 0-1

[Event "*** Titled Tuesday Blitz"]
[Site "Chess.com"]
[Date "2020.04.28"]
[Round "4"]
[White "queen_iryna"]
[Black "Ind1anStar"]
[Result "0-1"]
[WhiteElo "2275"]
[BlackElo "2587"]
[TimeControl "180+1"]
[EndTime "10:38:51 PDT"]
[Termination "Ind1anStar won on time"]

1. d4 {[%clk 0:03:00.9]} 1... d5 {[%clk 0:02:59.9]} 2. Nc3 {[%clk 0:03:00.1]}
2... e6 {[%clk 0:02:59.3]} 3. e4 {[%clk 0:02:59.7]} 3... Bb4 {[%clk 0:02:59.4]}
4. e5 {[%clk 0:02:59.3]} 4... c5 {[%clk 0:02:59.3]} 5. a3 {[%clk 0:02:58.4]}
5... Bxc3+ {[%clk 0:02:59.5]} 6. bxc3 {[%clk 0:02:59.3]} 6... Ne7 {[%clk
0:02:59.9]} 7. Qg4 {[%clk 0:02:51.4]} 7... Qc7 {[%clk 0:03:00]} 8. Qxg7 {[%clk
0:02:24.6]} 8... Rg8 {[%clk 0:02:59.6]} 9. Qxh7 {[%clk 0:02:23.8]} 9... cxd4
{[%clk 0:03:00.1]} 10. Ne2 {[%clk 0:02:21.1]} 10... Nbc6 {[%clk 0:03:00.3]} 11.
f4 {[%clk 0:02:13.1]} 11... dxc3 {[%clk 0:03:00.3]} 12. h4 {[%clk 0:01:55.5]}
12... Bd7 {[%clk 0:03:00]} 13. Qd3 {[%clk 0:01:49.9]} 13... d4 {[%clk
0:02:59.9]} 14. h5 {[%clk 0:01:43.3]} 14... O-O-O {[%clk 0:02:59.4]} 15. h6
{[%clk 0:01:39.4]} 15... Rg6 {[%clk 0:02:52.3]} 16. h7 {[%clk 0:01:31.7]} 16...
Rh8 {[%clk 0:02:52.1]} 17. Nxd4 {[%clk 0:01:26.9]} 17... Nxd4 {[%clk 0:02:48.2]}
18. Qxd4 {[%clk 0:01:24.8]} 18... Nf5 {[%clk 0:02:30.7]} 19. Qxa7 {[%clk
0:01:16.5]} 19... Ng3 {[%clk 0:02:25.4]} 20. Be3 {[%clk 0:00:34.8]} 20... Nxh1
{[%clk 0:02:20.5]} 21. Bb6 {[%clk 0:00:34.8]} 21... Qb8 {[%clk 0:02:20.7]} 22.
Qa5 {[%clk 0:00:35]} 22... Bc6 {[%clk 0:02:15.3]} 23. O-O-O {[%clk 0:00:25.1]}
23... Ng3 {[%clk 0:02:04.6]} 24. Rd8+ {[%clk 0:00:19.4]} 24... Rxd8 {[%clk
0:02:03.6]} 25. Bxd8 {[%clk 0:00:20.3]} 25... Rh6 {[%clk 0:02:00.4]} 26. Bg5
{[%clk 0:00:11]} 26... b6 {[%clk 0:01:57.1]} 27. Qxc3 {[%clk 0:00:09.5]} 27...
Rxh7 {[%clk 0:01:48.7]} 28. Qxc6+ {[%clk 0:00:09.2]} 28... Qc7 {[%clk
0:01:47.4]} 29. Ba6+ {[%clk 0:00:04.2]} 29... Kb8 {[%clk 0:01:47.9]} 30. Qe8+
{[%clk 0:00:02.5]} 30... Ka7 {[%clk 0:01:48.2]} 31. Bc8 {[%clk 0:00:01.4]} 31...
Rh1+ {[%clk 0:01:48]} 0-1

[Event "*** Titled Tuesday Blitz"]
[Site "Chess.com"]
[Date "2020.04.28"]
[Round "4"]
[White "Tynano"]
[Black "Tsubasa"]
[Result "0-1"]
[WhiteElo "2147"]
[BlackElo "2415"]
[TimeControl "180+1"]
[EndTime "10:38:51 PDT"]
[Termination "Tsubasa won by resignation"]

1. e4 {[%clk 0:03:00.9]} 1... e6 {[%clk 0:03:00.4]} 2. d4 {[%clk 0:03:00.9]}
2... d5 {[%clk 0:03:00.1]} 3. Nc3 {[%clk 0:03:01]} 3... Bb4 {[%clk 0:02:58.7]}
4. e5 {[%clk 0:03:00.6]} 4... c5 {[%clk 0:02:58.7]} 5. a3 {[%clk 0:03:00.9]}
5... Bxc3+ {[%clk 0:02:58.6]} 6. bxc3 {[%clk 0:03:01.3]} 6... Ne7 {[%clk
0:02:56.8]} 7. Qg4 {[%clk 0:03:01.2]} 7... Qc7 {[%clk 0:02:55.8]} 8. Qxg7 {[%clk
0:03:00.1]} 8... Rg8 {[%clk 0:02:53.4]} 9. Qxh7 {[%clk 0:03:00.3]} 9... cxd4
{[%clk 0:02:53]} 10. Ne2 {[%clk 0:02:50.7]} 10... Nbc6 {[%clk 0:02:52.5]} 11. f4
{[%clk 0:02:34.8]} 11... Bd7 {[%clk 0:02:51.5]} 12. g3 {[%clk 0:02:33.6]} 12...
dxc3 {[%clk 0:02:45.1]} 13. Bg2 {[%clk 0:02:31]} 13... d4 {[%clk 0:02:40.6]} 14.
O-O {[%clk 0:02:26.5]} 14... O-O-O {[%clk 0:02:18.1]} 15. Qe4 {[%clk 0:02:18.3]}
15... Nf5 {[%clk 0:02:12]} 16. a4 {[%clk 0:02:08.8]} 16... Qb6 {[%clk
0:01:43.2]} 17. a5 {[%clk 0:02:03.8]} 17... Nxa5 {[%clk 0:01:34]} 18. Kh1 {[%clk
0:00:59.5]} 18... Nc4 {[%clk 0:01:28.7]} 19. Ba3 {[%clk 0:00:56.8]} 19... Bc6
{[%clk 0:01:24.3]} 20. Qd3 {[%clk 0:00:56]} 20... Bxg2+ {[%clk 0:01:17.7]} 21.
Kxg2 {[%clk 0:00:55.4]} 21... Nce3+ {[%clk 0:01:11]} 22. Kf2 {[%clk 0:00:54.4]}
22... Nxf1 {[%clk 0:01:07.9]} 23. Kxf1 {[%clk 0:00:54.1]} 23... Qc6 {[%clk
0:01:03.2]} 24. Rb1 {[%clk 0:00:44.5]} 24... Ne3+ {[%clk 0:00:58]} 0-1

[Event "*** Titled Tuesday Blitz"]
[Site "Chess.com"]
[Date "2020.04.28"]
[Round "4"]
[White "Kimster98"]
[Black "Izoria123"]
[Result "0-1"]
[WhiteElo "2583"]
[BlackElo "2815"]
[TimeControl "180+1"]
[EndTime "10:38:52 PDT"]
[Termination "Izoria123 won by resignation"]

1. Nf3 {[%clk 0:03:00.9]} 1... d6 {[%clk 0:03:00.9]} 2. d4 {[%clk 0:02:59.7]}
2... g6 {[%clk 0:03:01.8]} 3. c4 {[%clk 0:02:59]} 3... Bg7 {[%clk 0:03:02]} 4.
g3 {[%clk 0:02:56.7]} 4... c5 {[%clk 0:03:00.8]} 5. Bg2 {[%clk 0:02:44.3]} 5...
Nc6 {[%clk 0:03:00]} 6. dxc5 {[%clk 0:02:43.3]} 6... Qa5+ {[%clk 0:02:59.4]} 7.
Bd2 {[%clk 0:02:33.6]} 7... Qxc5 {[%clk 0:02:59.3]} 8. Bc3 {[%clk 0:02:34.2]}
8... Nf6 {[%clk 0:02:59.8]} 9. Nbd2 {[%clk 0:02:29.7]} 9... O-O {[%clk
0:03:00.3]} 10. O-O {[%clk 0:02:24.5]} 10... Qh5 {[%clk 0:02:58.8]} 11. e3
{[%clk 0:02:16.5]} 11... Bh3 {[%clk 0:02:55.4]} 12. Bxf6 {[%clk 0:01:58.4]}
12... Bxf6 {[%clk 0:02:52.5]} 13. Rb1 {[%clk 0:01:56]} 13... Bf5 {[%clk
0:02:47.8]} 14. e4 {[%clk 0:01:54.8]} 14... Be6 {[%clk 0:02:48.2]} 15. b3 {[%clk
0:01:52.3]} 15... Rfc8 {[%clk 0:02:45.4]} 16. Rc1 {[%clk 0:01:19.1]} 16... Qa5
{[%clk 0:02:39.8]} 17. a4 {[%clk 0:01:16.5]} 17... a6 {[%clk 0:02:39.5]} 18. h3
{[%clk 0:00:58.3]} 18... Nb4 {[%clk 0:02:36.3]} 19. Qe2 {[%clk 0:00:56]} 19...
Na2 {[%clk 0:02:07.4]} 20. Rc2 {[%clk 0:00:53.4]} 20... Nb4 {[%clk 0:02:08]} 21.
Rcc1 {[%clk 0:00:52.2]} 21... Rc5 {[%clk 0:02:08.7]} 22. Nb1 {[%clk 0:00:44.6]}
22... Rac8 {[%clk 0:02:07.4]} 23. Rcd1 {[%clk 0:00:42.8]} 23... b5 {[%clk
0:02:06.6]} 24. axb5 {[%clk 0:00:42.8]} 24... axb5 {[%clk 0:02:07.1]} 25. Nd4
{[%clk 0:00:37.2]} 25... Bxd4 {[%clk 0:02:05.1]} 26. Rxd4 {[%clk 0:00:34.6]}
26... bxc4 {[%clk 0:02:06]} 27. Qd2 {[%clk 0:00:16.7]} 27... Nc6 {[%clk
0:01:59.4]} 28. Qxa5 {[%clk 0:00:12.7]} 28... Rxa5 {[%clk 0:02:00.3]} 29. Rdd1
{[%clk 0:00:10.9]} 29... cxb3 {[%clk 0:01:59.3]} 30. Nc3 {[%clk 0:00:11.4]}
30... Nd4 {[%clk 0:01:57.1]} 31. Nd5 {[%clk 0:00:10]} 31... Ne2+ {[%clk
0:01:56.6]} 32. Kh2 {[%clk 0:00:09.6]} 32... Bxd5 {[%clk 0:01:56.6]} 33. exd5
{[%clk 0:00:09.3]} 33... Nc3 {[%clk 0:01:53.1]} 34. Rd2 {[%clk 0:00:09.2]} 34...
Ra2 {[%clk 0:01:52.9]} 35. Rxa2 {[%clk 0:00:06]} 35... bxa2 {[%clk 0:01:51.6]}
36. Rc1 {[%clk 0:00:05.1]} 36... Rb8 {[%clk 0:01:49]} 0-1